bitfinex-derivatives/quotes_BTCF0:USTF0_20260315
["timestamp","ask_amount","ask_price","bid_price","bid_amount"]
[1773558779944,0.043238,71695.0,71681.0,0.041845]
[1773558780151,0.0014,71695.0,71682.0,0.041844]
[1773558780447,0.043238,71695.0,71682.0,0.041844]
[1773558780647,0.041839,71693.0,71679.0,0.07891382]
[1773558780946,0.041839,71693.0,71679.0,0.043246]
[1773558782347,0.041839,71693.0,71680.0,0.041846]
[1773558783050,0.03922699,71693.0,71667.0,0.03566782]
[1773558783251,0.03922699,71694.0,71673.0,0.04185]
[1773558783449,0.041843,71686.0,71673.0,0.04185]
[1773558783851,0.041844,71685.0,71671.0,0.041851]
[1773558784153,0.03922699,71688.0,71670.0,0.0014]
[1773558784352,0.041843,71685.0,71670.0,0.0014]
[1773558784854,0.041843,71685.0,71672.0,0.04185]
[1773558785554,0.041844,71684.0,71670.0,0.043251]
[1773558785851,0.041848,71676.0,71663.0,0.03566782]
[1773558786057,0.041847,71678.0,71665.0,0.041854]
[1773558786354,0.03922699,71682.0,71667.0,0.041853]
[1773558786355,0.041846,71680.0,71667.0,0.041853]
[1773558786547,0.041847,71679.0,71667.0,0.041853]
[1773558787254,0.041846,71681.0,71668.0,0.041853]
[1773558787756,0.0014,71699.0,71673.0,0.03566782]
[1773558787954,0.0014,71698.0,71673.0,0.03566782]
[1773558788159,0.041837,71696.0,71682.0,0.041844]
[1773558789462,0.041838,71695.0,71682.0,0.041844]
[1773558791157,0.041838,71694.0,71682.0,0.041844]
[1773558791660,0.0014,71693.0,71682.0,0.041844]
[1773558792158,0.0014,71693.0,71680.0,0.041846]
[1773558792461,0.041838,71694.0,71680.0,0.041846]
[1773558792661,0.0014,71693.0,71680.0,0.041846]
[1773558792855,0.043239,71693.0,71680.0,0.041846]
[1773558795454,0.03922699,71690.0,71667.0,0.03566782]
[1773558795659,0.0014,71693.0,71677.0,0.041847]
[1773558795660,0.04184,71691.0,71677.0,0.041847]
[1773558795854,0.041839,71693.0,71673.0,0.0014]
[1773558796056,0.0014,71692.0,71674.0,0.03706782]
[1773558796360,0.0014,71692.0,71675.0,0.03706782]
[1773558796566,0.04184,71691.0,71678.0,0.041847]
[1773558797859,0.04324,71691.0,71678.0,0.041847]
[1773558798355,0.03922699,71702.0,71679.0,0.03566782]
[1773558798661,0.03922699,71705.0,71671.0,0.16646848]
[1773558798851,0.03922699,71702.0,71670.0,0.03566782]
[1773558799563,0.04022699,71702.0,71670.0,0.03566782]
[1773558799859,0.04184,71691.0,71671.0,0.03566782]
[1773558800163,0.03922699,71690.0,71677.0,0.041847]
[1773558800466,0.03922699,71690.0,71678.0,0.0014]
[1773558800858,0.03922699,71690.0,71677.0,0.041847]
[1773558801066,0.03922699,71690.0,71678.0,0.041847]
[1773558801461,0.002,71702.0,71676.0,0.0014]
[1773558801662,0.002,71702.0,71677.0,0.03651948]
[1773558802068,0.0014,71701.0,71677.0,0.03651948]
[1773558803967,0.0014,71701.0,71690.0,0.04184]
[1773558804368,0.0014,71701.0,71686.0,0.0014]
[1773558804667,0.0014,71702.0,71686.0,0.0014]
[1773558805168,0.03734994,71701.0,71683.0,0.043244]
[1773558805369,0.03734994,71701.0,71683.0,0.041844]
[1773558805968,0.041836,71698.0,71683.0,0.041844]
[1773558806167,0.041837,71696.0,71683.0,0.041844]
[1773558806364,0.03734994,71686.0,71672.0,0.16646848]
[1773558806570,0.03874994,71685.0,71665.0,0.0014]
[1773558806768,0.043244,71684.0,71665.0,0.0014]
[1773558807074,0.043244,71684.0,71666.0,0.03651948]
[1773558807272,0.0014,71684.0,71672.0,0.04185]
[1773558807571,0.0014,71684.0,71666.0,0.03651948]
[1773558808076,0.03734994,71694.0,71676.0,0.041848]
[1773558808374,0.0014,71693.0,71676.0,0.041848]
[1773558808671,0.03874994,71693.0,71676.0,0.041848]
[1773558809073,0.04184,71690.0,71676.0,0.041848]
[1773558809966,0.041828,71710.0,71672.0,0.0014]
[1773558809967,0.03734994,71707.0,71682.0,0.03651948]
[1773558810176,0.041834,71702.0,71685.0,0.03651948]
[1773558810466,0.03734994,71703.0,71687.0,0.041841]
[1773558810667,0.03734994,71703.0,71688.0,0.041841]
[1773558810866,0.0014,71702.0,71688.0,0.041841]
[1773558811067,0.0014,71701.0,71688.0,0.041841]
[1773558811371,0.0014,71701.0,71685.0,0.03651948]
[1773558811866,0.0014,71701.0,71687.0,0.041841]
[1773558812972,0.0014,71703.0,71687.0,0.041841]
[1773558813168,0.041834,71701.0,71688.0,0.041841]
[1773558813569,0.041835,71700.0,71686.0,0.041842]
[1773558813770,0.041835,71700.0,71686.0,0.07836148]
[1773558813971,0.0014,71703.0,71686.0,0.03651948]
[1773558814171,0.0014,71703.0,71686.0,0.041842]
[1773558815170,0.041834,71700.0,71687.0,0.041841]
[1773558815972,0.041838,71694.0,71683.0,0.0014]
[1773558816176,0.0014,71699.0,71686.0,0.041842]
[1773558818372,0.041835,71700.0,71686.0,0.041842]
[1773558818579,0.041837,71695.0,71682.0,0.041844]
[1773558818771,0.041837,71695.0,71683.0,0.0014]
[1773558819972,0.041837,71695.0,71683.0,0.043244]
[1773558822977,0.0014,71697.0,71683.0,0.0014]
[1773558823874,0.03874994,71697.0,71683.0,0.0014]
[1773558824074,0.041838,71695.0,71683.0,0.0014]
[1773558825475,0.07918794,71695.0,71683.0,0.0014]
[1773558827284,0.041838,71694.0,71683.0,0.0014]
[1773558832381,0.0352345,71693.0,71683.0,0.0014]
[1773558832585,0.0352345,71693.0,71682.0,0.041844]
[1773558833184,0.04184,71691.0,71680.0,0.0014]
[1773558834581,0.0770735,71693.0,71680.0,0.043246]
[1773558834984,0.0352345,71692.0,71680.0,0.043246]
[1773558835283,0.0352345,71691.0,71680.0,0.043246]
[1773558835886,0.0352345,71691.0,71680.0,0.0014]
[1773558836087,0.0352345,71688.0,71663.0,0.16646848]
[1773558836276,0.0352345,71688.0,71663.0,0.03685769]
[1773558836477,0.0770755,71688.0,71675.0,0.041848]
[1773558836682,0.041843,71686.0,71673.0,0.04185]
[1773558836883,0.041843,71686.0,71674.0,0.041849]
[1773558837092,0.0014,71687.0,71674.0,0.041849]
[1773558837984,0.043242,71687.0,71674.0,0.041849]
[1773558838186,0.0784765,71687.0,71674.0,0.042849]
[1773558838485,0.00012,71695.0,71675.0,0.03685769]
[1773558838684,0.00012,71695.0,71687.0,0.041841]
[1773558838885,0.041835,71699.0,71687.0,0.041841]
[1773558839492,0.043235,71699.0,71687.0,0.041841]
[1773558839992,0.041835,71699.0,71687.0,0.041841]
[1773558840290,0.043235,71699.0,71687.0,0.041841]
[1773558840492,0.043235,71699.0,71685.0,0.041843]
[1773558844491,0.041841,71690.0,71677.0,0.041847]
[1773558844697,0.0352345,71691.0,71678.0,0.041847]
[1773558844898,0.0352345,71691.0,71679.0,0.043246]
[1773558845198,0.041838,71694.0,71674.0,0.03685769]
[1773558845388,0.041838,71694.0,71675.0,0.03825769]
[1773558845589,0.041839,71693.0,71679.0,0.041846]
[1773558846293,0.0352345,71696.0,71676.0,0.041848]
[1773558846499,0.0352345,71698.0,71676.0,0.041848]
[1773558847992,0.041841,71690.0,71676.0,0.041848]
[1773558848192,0.0784755,71689.0,71676.0,0.041848]
[1773558848388,0.0352345,71687.0,71673.0,0.0014]
[1773558848699,0.041844,71685.0,71673.0,0.04325]
[1773558848899,0.0770765,71687.0,71673.0,0.04185]
[1773558849292,0.0770765,71687.0,71672.0,0.0014]
[1773558849293,0.0770775,71685.0,71672.0,0.04325]
[1773558850093,0.0352345,71687.0,71672.0,0.0014]
[1773558850404,0.0352345,71683.0,71670.0,0.0014]
[1773558850594,0.041847,71679.0,71668.0,0.0014]
[1773558851700,0.0352345,71680.0,71658.0,0.20332617]
[1773558851900,0.041848,71677.0,71663.0,0.041855]
[1773558852804,0.041848,71676.0,71664.0,0.0014]
[1773558852990,0.00012,71699.0,71676.0,0.03685769]
[1773558853301,0.041839,71693.0,71679.0,0.07870369]
[1773558853604,0.041839,71693.0,71679.0,0.08010369]
[1773558853995,0.04184,71691.0,71679.0,0.03825769]
[1773558855302,0.04184,71691.0,71679.0,0.0014]
[1773558856404,0.041839,71693.0,71679.0,0.0014]
[1773558856703,0.041839,71693.0,71679.0,0.043246]
[1773558859400,0.041839,71692.0,71679.0,0.043246]
[1773558859998,0.043238,71694.0,71679.0,0.03825769]
[1773558860206,0.043238,71694.0,71680.0,0.07870369]
[1773558862008,0.043238,71694.0,71680.0,0.041846]
[1773558862205,0.041838,71695.0,71682.0,0.041844]
[1773558862393,0.0014,71695.0,71682.0,0.041844]
[1773558862590,0.041838,71694.0,71680.0,0.041846]
[1773558862791,0.041839,71693.0,71680.0,0.041846]
[1773558863207,0.041841,71690.0,71679.0,0.0014]
[1773558865107,0.041841,71689.0,71679.0,0.0014]
[1773558867702,0.041841,71689.0,71679.0,0.08900199]
[1773558870606,0.03316146,71716.0,71681.0,0.03432594]
[1773558870807,0.041834,71700.0,71690.0,0.08760199]
[1773558872302,0.0014,71703.0,71674.0,0.03432594]
[1773558872610,0.03316146,71699.0,71681.0,0.041845]
[1773558872910,0.03456146,71699.0,71682.0,0.0014]
[1773558873112,0.03316146,71699.0,71682.0,0.0014]
[1773558873305,0.0014,71698.0,71682.0,0.0014]
[1773558873704,0.041837,71696.0,71682.0,0.043244]
[1773558873904,0.041837,71695.0,71682.0,0.043244]
[1773558874501,0.041835,71699.0,71686.0,0.041842]
[1773558875408,0.03456146,71701.0,71682.0,0.03572594]
[1773558876113,0.041835,71700.0,71686.0,0.041842]
[1773558876315,0.041835,71699.0,71686.0,0.041842]
[1773558877706,0.03316146,71698.0,71683.0,0.0014]
[1773558877912,0.041837,71695.0,71683.0,0.043244]
[1773558878613,0.041837,71695.0,71683.0,0.0014]
[1773558878907,0.041838,71694.0,71683.0,0.0014]
[1773558879106,0.041839,71693.0,71683.0,0.0014]
[1773558879413,0.04184,71691.0,71678.0,0.041847]
[1773558879901,0.04184,71691.0,71675.0,0.0014]
[1773558880107,0.07500046,71693.0,71680.0,0.08760199]
[1773558880308,0.03316146,71693.0,71680.0,0.08760199]
[1773558881012,0.041839,71692.0,71680.0,0.12944799]
[1773558881215,0.041839,71692.0,71680.0,0.041846]
[1773558884416,0.03316146,71693.0,71675.0,0.0014]
[1773558884617,0.03316146,71695.0,71676.0,0.041848]
[1773558884807,0.03456146,71694.0,71676.0,0.041848]
[1773558885612,0.041841,71689.0,71676.0,0.041848]
[1773558885817,0.041841,71689.0,71676.0,0.043248]
[1773558890528,0.07500246,71689.0,71676.0,0.043248]
[1773558892735,0.03539472,71680.0,71666.0,0.16646848]
[1773558892942,0.03539472,71688.0,71663.0,0.03479243]
[1773558893130,0.041843,71685.0,71664.0,0.0014]
[1773558893336,0.043243,71685.0,71671.0,0.041851]
[1773558893736,0.041843,71685.0,71672.0,0.0014]
[1773558894338,0.03539472,71686.0,71672.0,0.0014]
[1773558895340,0.041845,71682.0,71672.0,0.0014]
[1773558896543,0.03539472,71681.0,71655.0,0.03479243]
[1773558896945,0.03539472,71677.0,71655.0,0.03479243]
[1773558897145,0.03679472,71677.0,71655.0,0.03479243]
[1773558897341,0.041851,71673.0,71655.0,0.03479243]
[1773558897736,0.03539472,71673.0,71656.0,0.041859]
[1773558897937,0.07724972,71665.0,71653.0,0.0014]
[1773558898137,0.03539472,71665.0,71654.0,0.041861]
[1773558899243,0.041853,71668.0,71650.0,0.12240765]
[1773558899244,0.0014,71668.0,71650.0,0.12240765]
[1773558899441,0.0014,71668.0,71651.0,0.03479243]
[1773558899642,0.0014,71668.0,71654.0,0.001]
[1773558900248,0.041853,71669.0,71655.0,0.0014]
[1773558900837,0.041853,71669.0,71656.0,0.04186]
[1773558901949,0.041853,71668.0,71655.0,0.0014]
[1773558902343,0.07724672,71670.0,71655.0,0.04326]
[1773558902544,0.041852,71670.0,71655.0,0.04326]
[1773558903245,0.0014,71671.0,71655.0,0.04326]
[1773558903246,0.041853,71669.0,71655.0,0.04326]
[1773558904843,0.041852,71670.0,71655.0,0.04326]
[1773558905555,0.041853,71668.0,71655.0,0.0014]
[1773558906652,0.041853,71668.0,71655.0,0.04326]
[1773558908356,0.03679472,71671.0,71655.0,0.0014]
[1773558908748,0.07724772,71668.0,71656.0,0.0014]
[1773558909157,0.07724772,71668.0,71653.0,0.041861]
[1773558909346,0.041854,71667.0,71654.0,0.0014]
[1773558909545,0.07724872,71667.0,71654.0,0.0014]
[1773558909859,0.03539472,71664.0,71655.0,0.0014]
[1773558910043,0.041857,71661.0,71652.0,0.0014]
[1773558910244,0.041857,71661.0,71649.0,0.0014]
[1773558910245,0.041858,71660.0,71649.0,0.0014]
[1773558910659,0.03539472,71661.0,71647.0,0.041865]
[1773558910856,0.03539472,71660.0,71648.0,0.043264]
[1773558911251,0.03539472,71660.0,71649.0,0.041864]
[1773558911446,0.10760949,71679.0,71648.0,0.0014]
[1773558911447,0.041854,71667.0,71650.0,0.12240765]
[1773558912052,0.041848,71677.0,71658.0,0.03479243]
[1773558912357,0.0014,71676.0,71659.0,0.0014]
[1773558912548,0.041848,71677.0,71659.0,0.0014]
[1773558912852,0.0014,71678.0,71667.0,0.041853]
[1773558913057,0.07724072,71680.0,71667.0,0.041853]
[1773558913349,0.07864072,71680.0,71667.0,0.041853]
[1773558913747,0.07724072,71680.0,71667.0,0.041853]
[1773558913947,0.03679472,71680.0,71659.0,0.03619243]
[1773558914150,0.041848,71677.0,71664.0,0.041855]
[1773558915260,0.041847,71679.0,71665.0,0.041854]
[1773558915557,0.03679472,71680.0,71665.0,0.041854]
[1773558915558,0.041847,71678.0,71665.0,0.041854]
[1773558915854,0.03539472,71686.0,71671.0,0.041851]
[1773558916157,0.041844,71683.0,71670.0,0.041851]
[1773558917461,0.0014,71682.0,71670.0,0.041851]
[1773558918762,0.041843,71686.0,71670.0,0.08761522]
[1773558918960,0.041843,71686.0,71670.0,0.12240765]
[1773558919157,0.041843,71685.0,71671.0,0.041851]
[1773558920265,0.041844,71684.0,71671.0,0.041851]
[1773558923564,0.041845,71683.0,71669.0,0.041852]
[1773558925363,0.041843,71685.0,71671.0,0.041851]
[1773558925966,0.03301189,71686.0,71669.0,0.041852]
[1773558926166,0.041845,71682.0,71669.0,0.041852]
[1773558926365,0.041844,71684.0,71670.0,0.041851]
[1773558927971,0.041843,71686.0,71670.0,0.03496405]
[1773558928174,0.043243,71686.0,71670.0,0.03496405]
[1773558928370,0.043243,71686.0,71670.0,0.12257927]
[1773558928573,0.0014,71687.0,71674.0,0.041849]
[1773558929270,0.11981189,71692.0,71674.0,0.043249]
[1773558929873,0.0014,71691.0,71674.0,0.043249]
[1773558930171,0.0014,71690.0,71674.0,0.0014]
[1773558930375,0.0014,71690.0,71674.0,0.043249]
[1773558930678,0.11993189,71692.0,71674.0,0.043249]
[1773558930866,0.0014,71691.0,71674.0,0.043249]
[1773558931066,0.041842,71687.0,71674.0,0.043249]
[1773558931270,0.041842,71687.0,71675.0,0.041849]
[1773558931466,0.041841,71689.0,71676.0,0.041848]
[1773558932971,0.0882,71692.0,71679.0,0.041846]
[1773558932972,0.04324,71691.0,71679.0,0.041846]
[1773558934071,0.0014,71691.0,71681.0,0.041845]
[1773558934271,0.0882,71692.0,71681.0,0.041845]
[1773558934869,0.0882,71692.0,71682.0,0.041844]
[1773558935466,0.0882,71692.0,71682.0,0.043244]
[1773558937877,0.0882,71692.0,71682.0,0.0014]
[1773558941873,0.03161189,71717.0,71686.0,0.03496405]
[1773558942169,0.041819,71727.0,71688.0,0.041841]
[1773558942170,0.041831,71705.0,71688.0,0.041841]
[1773558942477,0.07344289,71705.0,71691.0,0.041839]
[1773558942677,0.07344289,71705.0,71692.0,0.0014]
[1773558946785,0.041833,71703.0,71692.0,0.0014]
[1773558951591,0.0325018,71694.0,71671.0,0.03257854]
[1773558951775,0.0325018,71706.0,71673.0,0.03257854]
[1773558951982,0.0743368,71700.0,71680.0,0.08758304]
[1773558952292,0.0743368,71700.0,71687.0,0.041841]
[1773558952491,0.0743338,71705.0,71690.0,0.08758304]
[1773558952689,0.041832,71705.0,71691.0,0.043239]
[1773558952885,0.041832,71705.0,71692.0,0.0014]
[1773558953976,0.041831,71705.0,71693.0,0.041838]
[1773558954389,0.041831,71707.0,71694.0,0.041837]
[1773558955396,0.0743308,71709.0,71692.0,0.0014]
[1773558955993,0.0743308,71709.0,71696.0,0.041836]
[1773558958382,0.0325018,71709.0,71692.0,0.0014]
[1773558960088,0.0325018,71709.0,71696.0,0.041836]
[1773558960297,0.0325018,71709.0,71697.0,0.041836]
[1773558960799,0.0325018,71709.0,71690.0,0.0014]
[1773558960986,0.041832,71705.0,71692.0,0.041838]
[1773558961886,0.041832,71704.0,71692.0,0.041838]
[1773558962081,0.041832,71704.0,71690.0,0.04324]
[1773558964390,0.041833,71702.0,71690.0,0.04324]
[1773558964890,0.041835,71700.0,71690.0,0.0014]
[1773558965100,0.0743368,71700.0,71690.0,0.0014]
[1773558965289,0.0325018,71700.0,71690.0,0.0014]
[1773558967392,0.041833,71702.0,71690.0,0.0014]
[1773558969598,0.041833,71702.0,71689.0,0.04184]
[1773558969792,0.041833,71702.0,71691.0,0.0014]
[1773558971094,0.041834,71701.0,71691.0,0.0014]
[1773558971298,0.08758304,71710.0,71691.0,0.0014]
[1773558971505,0.041833,71702.0,71691.0,0.0014]
[1773558976706,0.041834,71700.0,71691.0,0.0014]
[1773558978803,0.041833,71703.0,71691.0,0.0014]
[1773558979287,0.041833,71702.0,71691.0,0.0014]
[1773558980405,0.041834,71700.0,71691.0,0.0014]
[1773558983205,0.041833,71702.0,71691.0,0.0014]
[1773558984503,0.041834,71701.0,71691.0,0.0014]
[1773558984701,0.03254371,71697.0,71681.0,0.07974205]
[1773558985002,0.08758304,71701.0,71681.0,0.07974205]
[1773558985003,0.03254371,71692.0,71682.0,0.0014]
[1773558987498,0.041839,71692.0,71682.0,0.0014]
[1773558987697,0.03254371,71691.0,71682.0,0.0014]
[1773558988207,0.03254371,71691.0,71666.0,0.25095867]
[1773558988505,0.03254371,71681.0,71669.0,0.041852]
[1773558988808,0.041845,71682.0,71670.0,0.0014]
[1773558989209,0.041846,71680.0,71670.0,0.0014]
[1773558989508,0.03254371,71690.0,71664.0,0.041855]
[1773558989699,0.03254371,71690.0,71665.0,0.0014]
[1773558989899,0.07439071,71679.0,71665.0,0.043254]
[1773558990206,0.07439071,71679.0,71666.0,0.0014]
[1773558990400,0.07439071,71679.0,71666.0,0.043254]
[1773558990601,0.03254371,71679.0,71667.0,0.0014]
[1773558990809,0.03254371,71679.0,71668.0,0.0014]
[1773558991004,0.03254371,71679.0,71669.0,0.0014]
[1773558991209,0.03254371,71679.0,71670.0,0.0014]
[1773558991409,0.041847,71678.0,71666.0,0.0014]
[1773558993104,0.07439071,71678.0,71666.0,0.0014]
[1773558993308,0.03254371,71677.0,71666.0,0.0014]
[1773558993999,0.03254371,71677.0,71665.0,0.041854]
[1773558994200,0.03254371,71677.0,71667.0,0.0014]
[1773558994703,0.03254371,71677.0,71668.0,0.0014]
[1773558995102,0.03254371,71679.0,71650.0,0.08758304]
[1773558995302,0.03254371,71679.0,71652.0,0.03120232]
[1773558995897,0.04185,71674.0,71659.0,0.041858]
[1773558996110,0.04185,71674.0,71660.0,0.0014]
[1773558998328,0.07439371,71674.0,71660.0,0.0014]
[1773558999514,0.0014,71679.0,71660.0,0.0014]
[1773558999515,0.07439371,71673.0,71660.0,0.0014]
[1773558999916,0.07439371,71673.0,71660.0,0.0024]
[1773559001215,0.07439371,71673.0,71660.0,0.001]
[1773559001415,0.07439371,71673.0,71661.0,0.0014]
[1773559001717,0.07439371,71673.0,71660.0,0.001]
[1773559001919,0.07439371,71673.0,71661.0,0.0014]
[1773559003616,0.07439371,71673.0,71661.0,0.0024]
[1773559005018,0.04185,71673.0,71661.0,0.0024]
[1773559005215,0.03254371,71672.0,71661.0,0.0024]
[1773559005721,0.041851,71672.0,71661.0,0.001]
[1773559005914,0.03254371,71671.0,71662.0,0.0014]
[1773559006315,0.03254371,71671.0,71663.0,0.0014]
[1773559007313,0.07439471,71671.0,71664.0,0.0014]
[1773559008223,0.07439471,71671.0,71663.0,0.001]
[1773559008424,0.07439471,71671.0,71664.0,0.0014]
[1773559010109,0.03254371,71670.0,71664.0,0.0014]
[1773559012826,0.03254371,71670.0,71659.0,0.041858]
[1773559013127,0.03254371,71670.0,71660.0,0.0014]
[1773559013329,0.03254371,71670.0,71659.0,0.041858]
[1773559013527,0.03254371,71670.0,71660.0,0.0014]
[1773559013722,0.03254371,71670.0,71661.0,0.0014]
[1773559013922,0.03254371,71670.0,71662.0,0.0014]
[1773559014322,0.03254371,71670.0,71659.0,0.041858]
[1773559014522,0.03254371,71670.0,71660.0,0.0014]
[1773559015029,0.03254371,71670.0,71661.0,0.0014]
[1773559015438,0.03254371,71670.0,71662.0,0.0014]
[1773559016229,0.03254371,71670.0,71659.0,0.041858]
[1773559016528,0.03254371,71670.0,71660.0,0.0014]
[1773559016730,0.03254371,71670.0,71659.0,0.041858]
[1773559016928,0.03254371,71670.0,71660.0,0.0014]
[1773559017427,0.041852,71669.0,71650.0,0.08765954]
[1773559017727,0.03187399,71667.0,71657.0,0.02917006]
[1773559017927,0.03187399,71667.0,71658.0,0.0014]
[1773559018524,0.03187399,71671.0,71658.0,0.0014]
[1773559018726,0.03187399,71686.0,71662.0,0.03239713]
[1773559018920,0.03187399,71686.0,71670.0,0.08765954]
[1773559018921,0.041846,71681.0,71670.0,0.08765954]
[1773559019428,0.041846,71681.0,71669.0,0.0014]
[1773559019628,0.03187399,71686.0,71669.0,0.0014]
[1773559020329,0.03187399,71690.0,71669.0,0.0014]
[1773559020922,0.041846,71680.0,71669.0,0.0014]
[1773559021932,0.041845,71682.0,71669.0,0.0014]
[1773559022634,0.041846,71681.0,71669.0,0.0014]
[1773559024830,0.041846,71681.0,71669.0,0.043252]
[1773559025529,0.041844,71683.0,71669.0,0.043252]
[1773559025733,0.041845,71682.0,71669.0,0.043252]
[1773559026033,0.0014,71691.0,71673.0,0.04185]
[1773559026235,0.03187399,71690.0,71673.0,0.04185]
[1773559027032,0.041843,71686.0,71673.0,0.04185]
[1773559029439,0.03187399,71687.0,71673.0,0.04185]
[1773559030337,0.03187399,71687.0,71676.0,0.041848]
[1773559030533,0.041841,71688.0,71676.0,0.041848]
[1773559033741,0.041841,71688.0,71674.0,0.041849]
[1773559034242,0.041841,71688.0,71675.0,0.0014]
[1773559034641,0.03187399,71687.0,71675.0,0.0014]
[1773559038145,0.041841,71688.0,71675.0,0.043249]
[1773559038735,0.041842,71687.0,71675.0,0.043249]
[1773559045859,0.03327399,71691.0,71675.0,0.0014]
[1773559046064,0.041843,71686.0,71675.0,0.0014]
[1773559048567,0.041842,71688.0,71675.0,0.0014]
[1773559050069,0.041842,71687.0,71676.0,0.041848]
[1773559050761,0.041842,71687.0,71675.0,0.0014]
[1773559050961,0.041842,71687.0,71675.0,0.03331669]
[1773559051970,0.043241,71689.0,71675.0,0.03331669]
[1773559052871,0.041841,71688.0,71676.0,0.041848]
[1773559053074,0.03323958,71694.0,71675.0,0.0014]
[1773559053267,0.07508142,71694.0,71675.0,0.0014]
[1773559053668,0.07508142,71694.0,71675.0,0.03331669]
[1773559053860,0.04184184,71694.0,71675.0,0.03331669]
[1773559054061,0.041839,71692.0,71678.0,0.041846]
[1773559054772,0.04184,71691.0,71678.0,0.041846]
[1773559055667,0.04184,71690.0,71678.0,0.041846]
[1773559060769,0.04184184,71689.0,71678.0,0.041846]
[1773559060975,0.041841,71688.0,71679.0,0.0014]
[1773559062577,0.041841,71688.0,71678.0,0.0014]
[1773559063076,0.04184184,71689.0,71678.0,0.0014]
[1773559069485,0.08368284,71689.0,71678.0,0.0014]
[1773559069684,0.041841,71689.0,71678.0,0.0014]
[1773559070584,0.04184184,71689.0,71678.0,0.0014]
[1773559070785,0.04184184,71689.0,71678.0,0.03418969]
[1773559074980,0.04184184,71689.0,71678.0,0.043247]
[1773559076385,0.11265482,71696.0,71684.0,0.041843]
[1773559076583,0.11265482,71696.0,71678.0,0.0014]
[1773559076584,0.04184184,71695.0,71682.0,0.07521659]
[1773559076784,0.041837,71696.0,71683.0,0.041844]
[1773559077282,0.041837,71696.0,71683.0,0.07521659]
[1773559077491,0.041837,71696.0,71684.0,0.0014]
[1773559077880,0.041837,71696.0,71684.0,0.03477259]
[1773559078280,0.041837,71696.0,71685.0,0.03337259]
[1773559080190,0.041837,71696.0,71684.0,0.0014]
[1773559081796,0.15975618,71696.0,71684.0,0.0014]
[1773559082293,0.04184184,71697.0,71685.0,0.041843]
[1773559082485,0.04184184,71697.0,71684.0,0.0014]
[1773559082486,0.041837,71696.0,71684.0,0.0014]
[1773559084590,0.04184184,71697.0,71684.0,0.03477259]
[1773559084786,0.041833,71702.0,71685.0,0.03337259]
[1773559085386,0.041833,71702.0,71689.0,0.04184]
[1773559086296,0.041833,71702.0,71690.0,0.0014]
[1773559086792,0.041831,71705.0,71691.0,0.03337259]
[1773559087995,0.041831,71705.0,71693.0,0.041838]
[1773559088389,0.041831,71705.0,71694.0,0.03337259]
[1773559088795,0.041828,71711.0,71694.0,0.03337259]
[1773559088992,0.03179883,71713.0,71699.0,0.041834]
[1773559089596,0.0014,71714.0,71699.0,0.041834]
[1773559089789,0.11264714,71714.0,71701.0,0.041833]
[1773559089995,0.03179883,71719.0,71701.0,0.041833]
[1773559090189,0.03179883,71719.0,71699.0,0.041835]
[1773559090190,0.041827,71713.0,71699.0,0.041835]
[1773559091000,0.001,71711.0,71699.0,0.041835]
[1773559091398,0.041827,71713.0,71699.0,0.041835]
[1773559091996,0.041827,71713.0,71698.0,0.03477259]
[1773559092588,0.18088976,71715.0,71702.0,0.041833]
[1773559092798,0.13906376,71715.0,71698.0,0.03477259]
[1773559093199,0.13906376,71715.0,71703.0,0.041832]
[1773559093402,0.02624399,71715.0,71704.0,0.0014]
[1773559093702,0.02624399,71715.0,71705.0,0.0014]
[1773559093900,0.02624399,71715.0,71706.0,0.0014]
[1773559094602,0.0014,71720.0,71706.0,0.0014]
[1773559095404,0.11537287,71720.0,71706.0,0.0014]
[1773559095705,0.041824,71719.0,71707.0,0.03337259]
[1773559096405,0.041824,71718.0,71707.0,0.03337259]
[1773559098499,0.041825,71716.0,71707.0,0.03337259]
[1773559099003,0.03179883,71711.0,71699.0,0.043234]
[1773559099307,0.20159535,71720.0,71700.0,0.043234]
[1773559099308,0.041826,71714.0,71700.0,0.043234]
[1773559099602,0.041826,71714.0,71701.0,0.0014]
[1773559099805,0.041826,71714.0,71701.0,0.043233]
[1773559100606,0.041826,71714.0,71702.0,0.041833]
[1773559101009,0.041826,71714.0,71701.0,0.0014]
[1773559101717,0.041826,71714.0,71701.0,0.043233]
[1773559104305,0.041825,71716.0,71703.0,0.041832]
[1773559104804,0.041826,71715.0,71703.0,0.041832]
[1773559105310,0.041825,71716.0,71703.0,0.041832]
[1773559105498,0.041825,71716.0,71703.0,0.07379705]
[1773559105704,0.041825,71716.0,71704.0,0.03196505]
[1773559110016,0.041826,71715.0,71704.0,0.03196505]
[1773559110318,0.041826,71715.0,71681.0,0.1117]
[1773559110319,0.03159988,71713.0,71689.0,0.03196505]
[1773559110511,0.041827,71713.0,71693.0,0.03196505]
[1773559110711,0.041825,71716.0,71699.0,0.03196505]
[1773559110915,0.041825,71716.0,71700.0,0.03336505]
[1773559111109,0.041825,71716.0,71702.0,0.03196505]
[1773559111310,0.041825,71716.0,71703.0,0.0014]
[1773559111504,0.041826,71715.0,71703.0,0.0014]
[1773559112317,0.041826,71715.0,71703.0,0.03336505]
[1773559120226,0.041825,71717.0,71703.0,0.03336505]
[1773559120726,0.041825,71717.0,71703.0,0.07519705]
[1773559120927,0.041825,71717.0,71704.0,0.041832]
[1773559121531,0.041823,71719.0,71703.0,0.03336505]
[1773559121834,0.041824,71718.0,71705.0,0.041831]
[1773559122924,0.041824,71718.0,71705.0,0.07379605]
[1773559123126,0.041825,71717.0,71705.0,0.07379605]
[1773559128738,0.041823,71719.0,71705.0,0.03196505]
[1773559129529,0.11683482,71721.0,71708.0,0.041829]
[1773559129733,0.12002709,71723.0,71708.0,0.041829]
[1773559130036,0.0014,71722.0,71708.0,0.041829]
[1773559131036,0.041823,71720.0,71708.0,0.041829]
[1773559131738,0.041823,71720.0,71709.0,0.02963393]
[1773559133743,0.041823,71720.0,71709.0,0.03103393]